fUST/lending_fUST_20250804
["ID","MTS","AMOUNT","RATE_DAILY","PERIOD"]
[377271627,1754310740146,-268.70041683,0.00030131,2]
[377271628,1754310740170,-465.0,0.00030131,2]
[377271629,1754310740195,-333.29761571,0.00030131,2]
[377271630,1754310740222,-500.0,0.00030131,2]
[377271631,1754310740247,-500.0,0.00030131,2]
[377271632,1754310740273,-500.0,0.00030131,2]
[377271633,1754310740297,-500.0,0.00030131,2]
[377271634,1754310740321,-500.0,0.00030131,2]
[377271635,1754310740345,-500.0,0.00030131,2]
[377271636,1754310740371,-500.0,0.00030131,2]
[377271637,1754310740400,-426.28816724,0.00030131,2]
[377271638,1754310740423,-500.0,0.00030131,2]
[377271639,1754310740444,-500.0,0.00030131,2]
[377271640,1754310740464,-500.0,0.00030131,2]
[377271641,1754310740488,-500.0,0.00030131,2]
[377271642,1754310740510,-249.83756655,0.00030131,2]
[377271643,1754310740530,-177.94926059,0.00030131,2]
[377271644,1754310740551,-500.0,0.00030131,2]
[377271645,1754310740571,-500.0,0.00030131,2]
[377271646,1754310740591,-376.3825889,0.00030131,2]
[377271647,1754310740613,-500.0,0.00030131,2]
[377271648,1754310740633,-236.43815826,0.00030131,2]
[377271649,1754310740655,-500.0,0.00030131,2]
[377271650,1754310740679,-500.0,0.00030131,2]
[377271651,1754310740705,-500.0,0.00030131,2]
[377271652,1754310740733,-500.0,0.00030131,2]
[377271653,1754310740766,-500.0,0.00030131,2]
[377271654,1754310740791,-500.0,0.00030131,2]
[377271655,1754310740817,-500.0,0.00030131,2]
[377271656,1754310740842,-500.0,0.00030131,2]
[377271657,1754310740867,-350.0,0.00030131,2]
[377271658,1754310740892,-464.39618011,0.00030131,2]
[377271659,1754310744074,-181.70319648,0.00030121,10]
[377271660,1754310745622,-58.97680352,0.00030121,10]
[377271661,1754310745648,-35.60381989,0.00030131,2]
[377271662,1754310745683,-128.86947157,0.00030131,2]
[377271663,1754310747756,-166.39,0.00030131,2]
[377271664,1754310749401,-204.74052843,0.00030131,2]
[377271665,1754310749426,-76.48054756,0.00030131,2]
[377271666,1754310750721,389.84009498,0.0003001,2]
[377271667,1754310751449,-213.24912499,0.00030131,2]
[377271668,1754310758846,-300.0,0.00030131,2]
[377271669,1754310760317,-200.0,0.00030131,2]
[377271670,1754310760340,-108.43236562,0.000302,5]
[377271671,1754310761877,-436.68563438,0.0003013,2]
[377271672,1754310763490,-63.31436562,0.0003013,2]
[377271673,1754310763514,-123.48994331,0.0003013,2]
[377271674,1754310767062,794.47020098,0.0003001,2]
[377271675,1754310768998,-199.73124727,0.00030031,2]
[377271676,1754310770510,-193.47580359,0.00030031,2]
[377271677,1754310770533,-53.93663386,0.0003013,2]
[377271678,1754310775448,262.78,0.00032498,30]
[377271679,1754310775946,262.78,0.00033,30]
[377271680,1754310778586,-170.99,0.0003013,2]
[377271681,1754310780238,-151.58342283,0.0003013,2]
[377271682,1754310780261,-42.77143571,0.0003013,2]
[377271683,1754310783929,-269.24989973,0.00030129,2]
[377271684,1754310786001,-130.75010027,0.00030129,2]
[377271685,1754310786175,-35.94827409,0.0003013,2]
[377271686,1754310787560,-181.29620376,0.0003013,2]
[377271687,1754310790080,-184.57986478,0.0003013,2]
[377271688,1754310791699,-55.40422166,0.0003013,2]
[377271689,1754310791722,-136.27787872,0.0003013,2]
[377271690,1754310791805,193.0953955,0.0003001,2]
[377271691,1754310793985,-240.0,0.0003003,2]
[377271692,1754310795488,-267.69345147,0.0003003,2]
[377271693,1754310797519,-308.89585036,0.0003003,2]
[377271694,1754310799178,-294.12936614,0.0003003,2]
[377271695,1754310801764,-75.05079914,0.0003003,2]
[377271696,1754310801789,-224.94920086,0.0003013,2]
[377271697,1754310803840,-173.44851524,0.0003013,2]
[377271698,1754310805984,-94.16934707,0.0003013,2]
[377271699,1754310806009,-205.66902516,0.0003013,2]
[377271700,1754310808058,-294.33097484,0.0003013,2]
[377271701,1754310808082,-88.03505098,0.0003013,2]
[377271702,1754310809146,228.50128512,0.00032323,120]
[377271703,1754310810211,-326.87683238,0.0003013,2]
[377271704,1754310813992,5000.0,0.0003001,2]
[377271705,1754310814747,-107.18699895,0.0003013,2]
[377271706,1754310814771,-98.11300105,0.0003013,2]
[377271707,1754310818997,-280.87577895,0.0003013,2]
[377271708,1754310820680,-121.01122,0.0003013,2]
[377271709,1754310820705,-189.96256117,0.0003013,2]
[377271710,1754310822855,4730.68056275,0.0003001,2]
[377271711,1754310823708,-310.03743883,0.0003013,2]
[377271712,1754310823731,-46.80473863,0.0003013,2]
[377271713,1754310826250,-228.09842978,0.0003013,2]
[377271714,1754310828329,-182.65386049,0.0003003,2]
[377271715,1754310830578,-43.55666566,0.0003003,2]
[377271716,1754310830601,-147.855863,0.00030129,2]
[377271717,1754310832602,-7.144137,0.00030129,2]
[377271718,1754310832627,-63.8411616,0.0003013,2]
[377271719,1754310832654,-114.5824809,0.0003013,2]
[377271720,1754310834715,-355.34929851,0.0003013,2]
[377271721,1754310837296,-30.06822059,0.0003013,2]
[377271722,1754310837320,-342.67823422,0.0003013,2]
[377271723,1754310839386,-157.32176578,0.0003013,2]
[377271724,1754310839408,-105.51296605,0.0003013,2]
[377271725,1754310842716,-54.64136848,0.0003013,2]
[377271726,1754310842744,-293.2893054,0.0003013,2]
[377271727,1754310843018,162.38,0.00029501,2]
[377271728,1754310846429,223.39,0.00032468,30]
[377271729,1754310846830,223.39,0.00033,30]
[377271730,1754310846966,-152.06932612,0.00030129,2]
[377271731,1754310849361,-161.31693335,0.00030129,2]
[377271732,1754310855153,-86.61374053,0.00030129,2]
[377271733,1754310855180,-151.70508104,0.0003013,2]
[377271734,1754310858165,-55.00561356,0.0003013,2]
[377271735,1754310858189,-183.31320801,0.0003013,2]
[377271736,1754310860198,-153.27945065,0.0003013,2]
[377271737,1754310862276,-163.40734134,0.0003013,2]
[377271738,1754310862302,-74.91148023,0.0003013,2]
[377271739,1754310863034,2120.75768176,0.00032835,30]
[377271740,1754310864294,-172.35598676,0.0003013,2]
[377271741,1754310866380,-170.99,0.0003013,2]
[377271742,1754310869605,-81.74253301,0.0003013,2]
[377271743,1754310869630,-93.01255099,0.0003013,2]
[377271744,1754310871186,-131.84125891,0.0003013,2]
[377271745,1754310871210,-93.6534429,0.0003013,2]
[377271746,1754310875033,-176.9369361,0.00030129,2]
[377271747,1754310879464,-173.0630639,0.00030129,2]
[377271748,1754310879488,-121.7334952,0.00030129,2]
[377271749,1754310899061,784.70004956,0.00032323,120]
[377271750,1754310906461,-251.35849118,0.00030128,2]
[377271751,1754310910530,-148.64150882,0.00030128,2]
[377271752,1754310910555,-95.24265862,0.00030128,2]
[377271753,1754310915931,186.80430893,0.00027402,15]
[377271754,1754310916256,211.46,0.00032368,30]
[377271755,1754310916665,211.46,0.0003283,30]
[377271757,1754310936803,-165.08088622,0.00030028,2]
[377271758,1754310936828,-22.38356576,0.00030028,2]
[377271759,1754310939671,-203.82696039,0.00030028,2]
[377271760,1754310939696,-33.74690534,0.00030029,2]
[377271761,1754310942200,160.0,0.0002,3]
[377271763,1754310944019,392.35002478,0.00032323,120]
[377271764,1754310947437,-131.33398086,0.00030029,2]
[377271765,1754310947461,-19.66601914,0.00030029,2]
[377271766,1754310950116,-145.41486706,0.00030029,2]
[377271768,1754310981962,279.74611745,0.00032161,30]
[377271769,1754310988808,164.46,0.00032363,30]
[377271770,1754310988990,196.17501239,0.0003228,120]
[377271771,1754310989268,164.46,0.00032827,30]
[377271772,1754310999784,10000.0,0.00029128,2]
[377271773,1754311032268,208.1338491,0.00029128,2]
[377271774,1754311033989,196.1750124,0.0003228,120]
[377271775,1754311099586,9057.83,0.00032876,120]
[377271776,1754311136723,408.4534185,0.00029074,2]
[377271777,1754311138209,380.0,0.00029074,2]
[377271779,1754311194290,156.5499438,0.0003,2]
[377271781,1754311206791,282.07049292,0.00027397,2]
[377271783,1754311271591,473.06,0.00029164,2]
[377271785,1754311310047,8680.42,0.00032876,120]
[377271786,1754311378136,24900.0,0.00029049,2]
[377271789,1754311445860,175.995246,0.00013699,2]
[377271790,1754311446064,175.995246,0.00020187,2]
[377271791,1754311446273,175.995246,0.00026676,2]
[377271792,1754311447741,179.897511,0.0002907,2]
[377271793,1754311450834,179.897511,0.0002907,2]
[377271794,1754311469435,150.5,0.0003188,120]
[377271795,1754311469883,150.5,0.0003187,120]
[377271796,1754311470364,150.5,0.0003186,120]
[377271797,1754311479218,666.0,0.00029049,2]
[377271798,1754311519936,163.465804,0.0002907,120]
[377271799,1754311529507,186.8099666,0.0002908,2]
[377271800,1754311529600,140000.0,0.0003,2]
[377271803,1754311558084,8318.74,0.00032876,120]
[377271808,1754311620441,174.60469,0.00029313,2]
[377271809,1754311620699,174.60469,0.00029313,120]
[377271810,1754311664327,721.56177239,0.00029151,2]
[377271812,1754311694017,3878.0930875,0.0002907,2]
[377271813,1754311709814,150.5,0.00031806,120]
[377271814,1754311710264,150.5,0.00031796,120]
[377271815,1754311710850,150.5,0.00031786,120]
[377271816,1754311728836,600.0,0.0003,2]
[377271817,1754311755660,738.43136,0.00029066,2]
[377271819,1754311787935,7972.13,0.00032876,120]
[377271820,1754311788272,378.44,0.00029052,2]
[377271823,1754311832316,150.5,0.00030889,120]
[377271842,1754311832713,150.5,0.00030879,120]
[377271843,1754311832908,-344.05616952,0.00030016,2]
[377271844,1754311832926,-981.99744272,0.00030016,2]
[377271845,1754311832936,-830.45162917,0.00030029,2]
[377271846,1754311832947,-745.118,0.00030029,2]
[377271847,1754311832957,-500.0,0.00030099,2]
[377271848,1754311832966,-500.0,0.00030099,2]
[377271849,1754311832975,-500.0,0.00030099,2]
[377271850,1754311832985,-500.0,0.00030099,2]
[377271851,1754311832994,-339.50601026,0.00030099,2]
[377271852,1754311833003,-1600.0,0.00030107,2]
[377271853,1754311833013,-400.0,0.00030108,2]
[377271854,1754311833022,-400.0,0.00030108,2]
[377271855,1754311833031,-350.0,0.00030108,2]
[377271856,1754311833041,-166.91485389,0.00030109,2]
[377271857,1754311833050,-416.6947128,0.00030109,2]
[377271858,1754311833059,-5412.0061721,0.0003011,2]
[377271859,1754311833075,-10290.51285541,0.0003011,2]
[377271860,1754311833087,-26462.26025189,0.0003011,2]
[377271861,1754311833096,-1600.0,0.00030115,2]
[377271862,1754311833106,-500.0,0.00030119,2]
[377271863,1754311833115,-1867.98,0.0003012,3]
[377271864,1754311833125,-933.99,0.0003012,3]
[377271865,1754311833135,-467.0,0.0003012,3]
[377271866,1754311833144,-233.5,0.0003012,3]
[377271867,1754311833154,-233.5,0.0003012,3]
[377271868,1754311833163,-42164.7792794,0.0003012,2]
[377271869,1754311833172,-984.82886035,0.0003013,2]
[377271870,1754311833182,-1000.0,0.0003013,2]
[377271871,1754311833191,-1000.0,0.0003013,2]
[377271872,1754311833201,-1000.0,0.0003013,2]
[377271873,1754311833210,-1000.0,0.0003013,2]
[377271874,1754311833219,-1000.0,0.0003013,2]
[377271875,1754311833228,-1000.0,0.0003013,2]
[377271876,1754311833238,-1000.0,0.0003013,2]
[377271877,1754311833247,-1000.0,0.0003013,2]
[377271878,1754311833256,-1000.0,0.0003013,2]
[377271879,1754311833265,-1000.0,0.0003013,2]
[377271880,1754311833274,-1000.0,0.0003013,2]
[377271881,1754311833283,-1000.0,0.0003013,2]
[377271882,1754311833292,-1000.0,0.0003013,2]
[377271883,1754311833301,-1000.0,0.0003013,2]
[377271884,1754311833311,-158.21124062,0.0003013,2]
[377271885,1754311833319,-160.0,0.0003013,2]
[377271886,1754311833329,-500.0,0.00030173,5]
[377271887,1754311833338,-500.0,0.00030173,5]
[377271888,1754311833347,-500.0,0.00030173,5]
[377271889,1754311833356,-500.33723967,0.00030173,5]
[377271890,1754311833365,-500.0,0.00030173,5]
[377271891,1754311833374,-500.0,0.00030173,5]
[377271892,1754311833384,-500.0,0.00030173,5]
[377271893,1754311833393,-500.0,0.00030173,5]
[377271894,1754311833403,-500.0,0.00030173,5]
[377271895,1754311833412,-500.0,0.00030173,5]
[377271896,1754311833421,-155.31387996,0.00030173,5]
[377271897,1754311833430,-500.0,0.00030173,5]
[377271898,1754311833440,-500.0,0.00030173,5]
[377271899,1754311833451,-501.88612443,0.00030173,5]
[377271900,1754311833460,-502.38347338,0.00030173,5]
[377271901,1754311833469,-500.0,0.00030173,5]
[377271902,1754311833478,-500.0,0.00030173,5]
[377271903,1754311833487,-500.0,0.00030173,5]
[377271904,1754311833497,-500.47467206,0.00030173,5]
[377271905,1754311833506,-500.0,0.00030173,5]
[377271906,1754311833515,-500.0,0.00030173,5]
[377271907,1754311833535,-501.48923229,0.00030173,2]
[377271908,1754311833547,-515.72399007,0.00030173,5]
[377271909,1754311833556,-504.08577945,0.00030173,5]
[377271910,1754311833566,-449.13890792,0.00030173,5]
[377271911,1754311833576,-500.0,0.00030173,5]
[377271912,1754311833585,-500.0,0.00030173,5]
[377271913,1754311833595,-500.0,0.00030173,5]
[377271914,1754311833605,-500.0,0.00030173,5]
[377271915,1754311833615,-500.0,0.00030173,5]
[377271916,1754311833624,-500.0,0.00030173,5]
[377271917,1754311833634,-500.0,0.00030173,5]
[377271918,1754311833643,-500.0,0.00030173,5]
[377271919,1754311833653,-500.0,0.00030173,5]
[377271920,1754311833662,-157.81327496,0.00030173,5]
[377271921,1754311833672,-500.0,0.00030173,5]
[377271922,1754311833682,-500.0,0.000302,5]
[377271923,1754311833691,-500.70080794,0.000302,5]
[377271924,1754311833701,-500.94457075,0.000302,5]
[377271925,1754311833711,-500.0,0.000302,5]
[377271926,1754311833721,-500.92231365,0.000302,5]
[377271927,1754311833730,-500.6679518,0.000302,2]
[377271928,1754311833741,-169.03078262,0.00030226,2]
[377271929,1754311833751,-502.791797,0.00030338,5]
[377271930,1754311833761,-500.0,0.00030338,5]
[377271931,1754311833771,-391.56763438,0.00030338,5]
[377271932,1754311833781,-500.0,0.00030338,5]
[377271939,1754311833972,-1991.25280206,0.00030386,2]
[377271941,1754311833983,-500.0,0.00030393,2]
[377271944,1754311833993,-981.99744268,0.00030457,2]
[377271946,1754311834004,-500.0,0.00030667,2]
[377271948,1754311834014,-1000.0,0.00030721,5]
[377271949,1754311834024,-500.0,0.00030721,5]
[377271951,1754311834034,-1002.23515975,0.00030721,5]
[377271954,1754311834046,-259.14114881,0.00030721,5]
[377271955,1754311834056,-1000.0,0.00030721,5]
[377271957,1754311834065,-1000.0,0.00030721,5]
[377271960,1754311834080,-503.28221012,0.00030721,5]
[377271962,1754311834091,-1000.0,0.00030721,5]
[377271964,1754311834101,-1000.0,0.00030721,5]
[377271966,1754311834111,-331.81657231,0.00030721,5]
[377271968,1754311834122,-1000.0,0.00030721,5]
[377271970,1754311834132,-1000.0,0.00030721,5]
[377271972,1754311834143,-1000.0,0.00030721,5]
[377271974,1754311834153,-1000.0,0.00030721,5]
[377271976,1754311834163,-1000.0,0.00030721,5]
[377271978,1754311834174,-1077.40031225,0.00030721,5]
[377271980,1754311834188,-1000.0,0.00030721,5]
[377271982,1754311834198,-1000.0,0.00030721,5]
[377271984,1754311834207,-500.98550011,0.00030721,5]
[377271986,1754311834217,-421.82555341,0.00030721,5]
[377271989,1754311834227,-1000.0,0.00030721,5]
[377271990,1754311834237,-704.9754078,0.00030721,5]
[377271992,1754311834247,-205.07120427,0.00030721,5]
[377271994,1754311834256,-502.91692368,0.00030748,5]
[377271996,1754311834266,-1000.0,0.00030748,5]
[377271998,1754311834275,-2490.24870872,0.00030776,2]
[377272000,1754311834284,-289.52621953,0.00030809,2]
[377272002,1754311834294,-42164.7792794,0.00030875,2]
[377272004,1754311834304,-1000.0,0.00030885,5]
[377272006,1754311834313,-981.99744268,0.00030899,2]
[377272008,1754311834322,-3859.61540453,0.000309,23]
[377272010,1754311834332,-382.52835953,0.00030941,2]
[377272012,1754311834341,-42164.7792794,0.00031206,2]
[377272014,1754311834351,-3859.61540446,0.0003121,24]
[377272016,1754311834361,-509.79912995,0.00031268,5]
[377272018,1754311834372,-176.02074832,0.00031268,5]
[377272020,1754311834381,-1016.52536223,0.00031268,5]
[377272022,1754311834391,-500.0,0.00031268,5]
[377272024,1754311834400,-500.0,0.00031268,5]
[377272026,1754311834410,-500.0,0.00031268,5]
[377272028,1754311834419,-594.6179679,0.00031268,5]
[377272030,1754311834429,-1500.0,0.00031268,5]
[377272032,1754311834437,-1500.0,0.00031268,5]
[377272034,1754311834447,-500.0,0.00031268,5]
[377272036,1754311834456,-1514.26297066,0.00031268,5]
[377272038,1754311834466,-500.0,0.00031268,5]
[377272040,1754311834475,-504.88097113,0.00031296,5]
[377272042,1754311834484,-276.36981487,0.00031333,5]
[377272045,1754311834495,-443.39746879,0.00031333,5]
[377272047,1754311834504,-500.0,0.00031333,5]
[377272048,1754311834514,-500.0,0.00031333,5]
[377272051,1754311834523,-500.0,0.00031333,5]
[377272053,1754311834533,-500.0,0.00031333,5]
[377272055,1754311834544,-500.0,0.00031333,5]
[377272057,1754311834554,-500.0,0.00031333,5]
[377272058,1754311834563,-500.0,0.00031333,5]
[377272061,1754311834573,-500.0,0.00031333,5]
[377272063,1754311834584,-513.227925,0.00031333,5]
[377272065,1754311834593,-500.0,0.00031333,5]
[377272067,1754311834602,-500.0,0.00031333,5]
[377272069,1754311834611,-500.0,0.00031333,5]
[377272071,1754311834622,-500.0,0.00031333,5]
[377272073,1754311834631,-504.13604337,0.00031333,5]
[377272075,1754311834641,-981.99744268,0.0003134,2]
[377272077,1754311834651,-344.05616948,0.00031428,2]
[377272079,1754311834660,-500.0,0.00031433,5]
[377272081,1754311834670,-3735.96,0.0003149,3]
[377272083,1754311834679,-1867.98,0.0003149,3]
[377272085,1754311834689,-934.0,0.0003149,3]
[377272087,1754311834699,-467.0,0.0003149,3]
[377272089,1754311834708,-467.0,0.0003149,3]
[377272091,1754311834719,-231.67098287,0.0003149,3]
[377272093,1754311834729,-3859.61540446,0.00031521,25]
[377272095,1754311834739,-291.0,0.00031697,2]
[377272097,1754311834749,-981.99744268,0.00031781,2]
[377272099,1754311834758,-2000.0,0.00031816,5]
[377272101,1754311834768,-2008.11239632,0.00031816,5]
[377272103,1754311834777,-42164.7792794,0.00031821,2]
[377272105,1754311834787,-3859.61540446,0.00031831,25]
[377272107,1754311834797,-11667.14697416,0.00031862,2]
[377272109,1754311834806,-294.62646658,0.00031881,5]
[377272111,1754311834816,-408.56576498,0.00031881,5]
[377272113,1754311834826,-1000.0,0.00031881,5]
[377272115,1754311834836,-463.96852916,0.00031881,5]
[377272117,1754311834846,-646.36163113,0.00031881,5]
[377272119,1754311834860,-703.03257847,0.00031881,5]
[377272121,1754311834870,-42164.7792794,0.00031952,2]
[377272123,1754311834880,-160.0,0.0003197,2]
[377272125,1754311834889,-150.0,0.00031973,5]
[377272127,1754311834901,-500.0,0.00031973,5]
[377272129,1754311834911,-500.0,0.00031973,5]
[377272131,1754311834920,-216.64440781,0.00031973,5]
[377272133,1754311834931,-500.86414136,0.00031973,5]
[377272135,1754311834940,-500.0,0.00031973,5]
[377272137,1754311834950,-350.0,0.00031978,2]
[377272139,1754311834960,-42164.7792794,0.0003198,2]
[377272141,1754311834970,-3859.61540446,0.00032141,26]
[377272143,1754311834980,-2500.0,0.00032364,5]
[377272144,1754311834990,-210.42198093,0.00032429,5]
[377272145,1754311834999,-423.0,0.00032446,2]
[377272146,1754311835009,-524.0,0.00032446,3]
[377272147,1754311835019,-3859.61540446,0.00032452,26]
[377272148,1754311835028,-2240.0,0.00032453,3]
[377272149,1754311835038,-260.0,0.00032518,2]
[377272150,1754311835048,-250.0,0.00032521,5]
[377272151,1754311835057,-1000.0,0.00032521,5]
[377272152,1754311835067,-519.33640727,0.00032521,5]
[377272153,1754311835077,-1000.0,0.00032521,5]
[377272154,1754311835086,-2240.0,0.00032583,3]
[377272155,1754311835096,-500.0,0.000326,5]
[377272156,1754311835106,-3859.61540446,0.00032762,27]
[377272157,1754311835116,-151.0,0.00032808,2]
[377272158,1754311835126,-151.0,0.00032808,2]
[377272159,1754311835136,-151.0,0.00032808,2]
[377272160,1754311835146,-151.0,0.00032808,2]
[377272161,1754311835155,-151.0,0.00032808,2]
[377272162,1754311835165,-151.0,0.00032808,2]
[377272163,1754311835175,-151.0,0.00032808,2]
[377272164,1754311835184,-151.0,0.00032808,2]
[377272165,1754311835194,-300.0,0.00032808,2]
[377272166,1754311835204,-151.0,0.00032808,2]
[377272167,1754311835213,-151.0,0.00032808,2]
[377272168,1754311835223,-300.0,0.00032808,2]
[377272169,1754311835232,-432.97141719,0.00032808,2]
[377272170,1754311835243,-151.0,0.00032808,2]
[377272171,1754311835253,-151.0,0.00032808,2]
[377272172,1754311835263,-2030.296672,0.00032808,2]
[377272173,1754311835272,-151.0,0.00032808,2]
[377272174,1754311835282,-151.0,0.00032808,2]
[377272175,1754311835292,-151.0,0.00032808,2]
[377272176,1754311835302,-151.0,0.00032808,2]
[377272177,1754311835312,-151.0,0.00032808,2]
[377272178,1754311835323,-151.0,0.00032808,2]
[377272179,1754311835333,-151.0,0.00032808,2]
[377272180,1754311835343,-151.0,0.00032808,2]
[377272181,1754311835353,-151.0,0.00032808,2]
[377272182,1754311835363,-151.0,0.00032808,2]
[377272183,1754311835373,-151.0,0.00032808,2]
[377272184,1754311835383,-151.0,0.00032808,2]
[377272185,1754311835392,-151.0,0.00032808,2]
[377272186,1754311835402,-151.0,0.00032808,2]
[377272187,1754311835412,-151.0,0.00032808,2]
[377272188,1754311835422,-151.0,0.00032808,2]
[377272189,1754311835431,-151.0,0.00032808,2]
[377272190,1754311835441,-151.0,0.00032808,2]
[377272191,1754311835451,-151.0,0.00032808,2]
[377272192,1754311835460,-151.0,0.00032808,2]
[377272193,1754311835470,-344.05616948,0.0003284,2]
[377272194,1754311835480,-2105.41764886,0.00032863,2]
[377272195,1754311835491,-492.88,0.00032876,2]
[377272196,1754311835500,-460.0,0.00032876,2]
[377272197,1754311835519,-460.0,0.00032876,2]
[377272198,1754311835531,-460.0,0.00032876,2]
[377272199,1754311835542,-460.0,0.00032876,2]
[377272200,1754311835552,-540.3817594,0.00032876,2]
[377272201,1754311835562,-460.0,0.00032876,2]
[377272202,1754311835572,-460.0,0.00032876,2]
[377272203,1754311835582,-460.0,0.00032876,2]
[377272204,1754311835593,-1581.02,0.00032876,2]
[377272205,1754311835603,-460.0,0.00032876,2]
[377272206,1754311835613,-460.0,0.00032876,2]
[377272207,1754311835624,-466.35820989,0.00032876,2]
[377272208,1754311835634,-460.0,0.00032876,2]
[377272209,1754311835644,-471.50706535,0.00032876,2]
[377272210,1754311835654,-761.43,0.00032876,2]
[377272211,1754311835664,-460.0,0.00032876,2]
[377272212,1754311835675,-460.0,0.00032876,2]
[377272213,1754311835685,-460.0,0.00032876,2]
[377272214,1754311835696,-460.0,0.00032876,2]
[377272215,1754311835706,-1147.94,0.00032876,2]
[377272216,1754311835717,-460.0,0.00032876,2]
[377272217,1754311835727,-460.0,0.00032876,2]
[377272218,1754311835738,-460.0,0.00032876,2]
[377272219,1754311835748,-460.0,0.00032876,2]
[377272220,1754311835758,-460.0,0.00032876,2]
[377272221,1754311835768,-460.0,0.00032876,2]
[377272222,1754311835778,-460.0,0.00032876,2]
[377272223,1754311835787,-460.0,0.00032876,2]
[377272224,1754311835798,-463.91335734,0.00032876,2]
[377272225,1754311835807,-460.0,0.00032876,2]
[377272226,1754311835817,-465.54893334,0.00032876,2]
[377272227,1754311835828,-460.0,0.00032876,2]
[377272228,1754311835838,-463.70608863,0.00032876,2]
[377272229,1754311835854,-460.0,0.00032876,2]
[377272230,1754311835864,-561.61352261,0.00032876,2]
[377272231,1754311835875,-460.0,0.00032876,2]
[377272232,1754311835885,-460.0,0.00032876,2]
[377272233,1754311835896,-460.0,0.00032876,2]
[377272234,1754311835906,-460.0,0.00032876,2]
[377272235,1754311835916,-460.0,0.00032876,2]
[377272236,1754311835927,-460.0,0.00032876,2]
[377272237,1754311835937,-1093.34,0.00032876,2]
[377272238,1754311835946,-821.02,0.00032876,2]
[377272239,1754311835956,-460.0,0.00032876,2]
[377272240,1754311835966,-460.0,0.00032876,2]
[377272241,1754311835976,-642.65,0.00032876,2]
[377272242,1754311835986,-460.0,0.00032876,2]
[377272243,1754311835996,-460.0,0.00032876,2]
[377272244,1754311836006,-591.47468233,0.00032876,2]
[377272245,1754311836015,-460.0,0.00032876,2]
[377272246,1754311836026,-500.0,0.00032876,2]
[377272247,1754311836036,-8561.12,0.00032876,2]
[377272248,1754311836046,-460.0,0.00032876,2]
[377272249,1754311836056,-460.0,0.00032876,2]
[377272250,1754311836066,-460.0,0.00032876,2]
[377272251,1754311836076,-460.0,0.00032876,2]
[377272252,1754311836086,-460.0,0.00032876,2]
[377272253,1754311836096,-460.0,0.00032876,2]
[377272254,1754311836106,-536.98,0.00032876,2]
[377272255,1754311836116,-460.0,0.00032876,2]
[377272256,1754311836127,-685.73,0.00032876,2]
[377272257,1754311836137,-467.54,0.00032876,2]
[377272258,1754311836148,-460.0,0.00032876,2]
[377272259,1754311836158,-460.0,0.00032876,2]
[377272260,1754311836168,-460.0,0.00032876,2]
[377272261,1754311836178,-460.0,0.00032876,2]
[377272262,1754311836188,-460.0,0.00032876,2]
[377272263,1754311836199,-609.53713742,0.00032876,2]
[377272264,1754311836209,-460.0,0.00032876,2]
[377272265,1754311836220,-971.43,0.00032876,2]
[377272266,1754311836230,-1113.28,0.00032876,2]
[377272267,1754311836240,-565.3,0.00032876,2]
[377272268,1754311836251,-460.0,0.00032876,2]
[377272269,1754311836264,-460.0,0.00032876,2]
[377272270,1754311836274,-460.62,0.00032876,2]
[377272271,1754311836284,-8976.9,0.00032876,2]
[377272272,1754311836295,-4006.22,0.00032876,2]